[Event "December 12 Early 2023"]
[Site "https://www.chess.com"]
[Date "2023.12.12"]
[Round "5"]
[White "Onoprijchuk, Boris"]
[Black "Sailer, Mike"]
[Result "1-0"]
[Board "180"]
[TimeControl "180+1"]
[WhiteFideId "4171179"]
[BlackFideId "2012901"]
[WhiteElo "2401"]
[BlackElo "2049"]
[WhiteTeam "RUS"]
[BlackTeam "USA"]
[WhiteClock "0:00:19"]
[BlackClock "0:00:05"]

1. e4 {[%clk 0:02:50]}  d5 {[%clk 0:02:51]} 2. exd5 {[%clk 0:02:49]}  Qxd5 {[%clk 0:02:50]} 3. Nc3 {[%clk 0:02:50]}  Qd6 {[%clk 0:02:50]} 4. d4 {[%clk 0:02:50]}  c6 {[%clk 0:02:50]} 5. Nf3 {[%clk 0:02:51]}  Bg4 {[%clk 0:02:49]} 6. Be3 {[%clk 0:02:38]}  Nf6 {[%clk 0:02:46]} 7. h3 {[%clk 0:02:38]}  Bh5 {[%clk 0:02:42]} 8. g4 {[%clk 0:02:37]}  Bg6 {[%clk 0:02:42]} 9. Ne5 {[%clk 0:02:37]}  Nbd7 {[%clk 0:02:37]} 10. Nxg6 {[%clk 0:02:36]}  hxg6 {[%clk 0:02:37]} 11. Bg2 {[%clk 0:02:36]}  e6 {[%clk 0:02:36]} 12. Qf3 {[%clk 0:02:31]}  Qc7 {[%clk 0:02:35]} 13. O-O {[%clk 0:02:29]}  Bd6 {[%clk 0:02:34]} 14. g5 {[%clk 0:02:22]}  Nd5 {[%clk 0:02:08]} 15. Ne4 {[%clk 0:02:21]}  Nxe3 {[%clk 0:02:06]} 16. fxe3 {[%clk 0:02:22]}  Bh2+ {[%clk 0:01:45]} 17. Kh1 {[%clk 0:02:21]}  O-O {[%clk 0:01:45]} 18. c4 {[%clk 0:02:10]}  Nb6 {[%clk 0:01:30]} 19. c5 {[%clk 0:02:07]}  Nd5 {[%clk 0:01:30]} 20. Nf2 {[%clk 0:01:55]}  Bg3 {[%clk 0:01:07]} 21. Ng4 {[%clk 0:01:50]}  Rae8 {[%clk 0:00:57]} 22. e4 {[%clk 0:01:50]}  Ne7 {[%clk 0:00:48]} 23. e5 {[%clk 0:01:48]}  Bh4 {[%clk 0:00:47]} 24. Qf4 {[%clk 0:01:40]}  Nf5 {[%clk 0:00:46]} 25. Ne3 {[%clk 0:01:14]}  Nxe3 {[%clk 0:00:29]} 26. Qxe3 {[%clk 0:01:13]}  Qe7 {[%clk 0:00:29]} 27. b4 {[%clk 0:01:00]}  Qxg5 {[%clk 0:00:28]} 28. Qe4 {[%clk 0:00:51]}  Qd8 {[%clk 0:00:22]} 29. a4 {[%clk 0:00:50]}  Be7 {[%clk 0:00:17]} 30. b5 {[%clk 0:00:49]}  Qd7 {[%clk 0:00:17]} 31. bxc6 {[%clk 0:00:49]}  bxc6 {[%clk 0:00:17]} 32. Rfd1 {[%clk 0:00:45]}  Rc8 {[%clk 0:00:15]} 33. Rab1 {[%clk 0:00:44]}  Rfd8 {[%clk 0:00:15]} 34. a5 {[%clk 0:00:44]}  Qd5 {[%clk 0:00:14]} 35. Qc2 {[%clk 0:00:38]}  Qd7 {[%clk 0:00:08]} 36. a6 {[%clk 0:00:38]}  Rc7 {[%clk 0:00:08]} 37. Rb4 {[%clk 0:00:35]}  f6 {[%clk 0:00:08]} 38. Qxg6 {[%clk 0:00:30]}  fxe5 {[%clk 0:00:08]} 39. Be4 {[%clk 0:00:27]}  Bf6 {[%clk 0:00:06]} 40. Rf1 {[%clk 0:00:22]}  exd4 {[%clk 0:00:06]} 41. Rxf6 {[%clk 0:00:19]}  d3 {[%clk 0:00:05]} 42. Qh7# {[%clk 0:00:19]} 1-0

[Event "December 12 Early 2023"]
[Site "https://www.chess.com"]
[Date "2023.12.12"]
[Round "5"]
[White "Kotlyar, Kirill"]
[Black "Thake, Conrad"]
[Result "1-0"]
[Board "185"]
[TimeControl "180+1"]
[WhiteFideId "24145599"]
[BlackFideId "5602947"]
[WhiteElo "2556"]
[BlackElo "1965"]
[WhiteTeam "RUS"]
[BlackTeam "MLT"]
[WhiteClock "0:00:21"]
[BlackClock "0:00:06"]

1. e4 {[%clk 0:02:59]}  e6 {[%clk 0:02:59]} 2. Nf3 {[%clk 0:02:59]}  d5 {[%clk 0:02:59]} 3. Nc3 {[%clk 0:03:00]}  d4 {[%clk 0:02:57]} 4. Ne2 {[%clk 0:02:59]}  c5 {[%clk 0:02:58]} 5. c3 {[%clk 0:03:00]}  dxc3 {[%clk 0:02:54]} 6. bxc3 {[%clk 0:03:01]}  Nc6 {[%clk 0:02:54]} 7. g3 {[%clk 0:02:55]}  b6 {[%clk 0:02:52]} 8. Bg2 {[%clk 0:02:55]}  Bb7 {[%clk 0:02:52]} 9. O-O {[%clk 0:02:56]}  Be7 {[%clk 0:02:50]} 10. d4 {[%clk 0:02:56]}  cxd4 {[%clk 0:02:48]} 11. cxd4 {[%clk 0:02:57]}  Nf6 {[%clk 0:02:40]} 12. e5 {[%clk 0:02:47]}  Nd5 {[%clk 0:02:38]} 13. Be3 {[%clk 0:02:44]}  O-O {[%clk 0:02:36]} 14. Nf4 {[%clk 0:02:42]}  Nxf4 {[%clk 0:02:31]} 15. Bxf4 {[%clk 0:02:36]}  Qc8 {[%clk 0:02:17]} 16. Rc1 {[%clk 0:02:32]}  Rd8 {[%clk 0:02:16]} 17. Qd3 {[%clk 0:02:23]}  Qd7 {[%clk 0:02:05]} 18. Rfd1 {[%clk 0:02:20]}  Rac8 {[%clk 0:02:01]} 19. Ng5 {[%clk 0:02:06]}  Bxg5 {[%clk 0:01:52]} 20. Bxg5 {[%clk 0:02:06]}  Re8 {[%clk 0:01:51]} 21. Be4 {[%clk 0:01:48]}  h6 {[%clk 0:01:49]} 22. Be3 {[%clk 0:01:46]}  Nb4 {[%clk 0:01:40]} 23. Qb1 {[%clk 0:01:43]}  Rxc1 {[%clk 0:01:37]} 24. Rxc1 {[%clk 0:01:42]}  Nd5 {[%clk 0:01:32]} 25. Qb3 {[%clk 0:01:12]}  Rc8 {[%clk 0:01:29]} 26. Rxc8+ {[%clk 0:00:49]}  Qxc8 {[%clk 0:01:29]} 27. Bxd5 {[%clk 0:00:48]}  Bxd5 {[%clk 0:01:28]} 28. Qb2 {[%clk 0:00:47]}  Qc6 {[%clk 0:01:25]} 29. a3 {[%clk 0:00:45]}  Bh1 {[%clk 0:01:23]} 30. f4 {[%clk 0:00:44]}  Be4 {[%clk 0:01:14]} 31. Qc1 {[%clk 0:00:30]}  Bh1 {[%clk 0:01:12]} 32. Qxc6 {[%clk 0:00:26]}  Bxc6 {[%clk 0:01:11]} 33. Kf2 {[%clk 0:00:27]}  Kf8 {[%clk 0:01:11]} 34. Ke2 {[%clk 0:00:27]}  Ke8 {[%clk 0:01:11]} 35. Kd3 {[%clk 0:00:27]}  Kd7 {[%clk 0:01:10]} 36. Kc4 {[%clk 0:00:28]}  Kc7 {[%clk 0:01:09]} 37. Bd2 {[%clk 0:00:25]}  Bb7 {[%clk 0:01:03]} 38. Bb4 {[%clk 0:00:25]}  Ba6+ {[%clk 0:01:02]} 39. Kc3 {[%clk 0:00:25]}  Bb5 {[%clk 0:01:00]} 40. Bf8 {[%clk 0:00:25]}  g6 {[%clk 0:00:47]} 41. Bxh6 {[%clk 0:00:26]}  Kc6 {[%clk 0:00:46]} 42. g4 {[%clk 0:00:19]}  Kd5 {[%clk 0:00:46]} 43. h4 {[%clk 0:00:16]}  a5 {[%clk 0:00:38]} 44. Bf8 {[%clk 0:00:15]}  Ke4 {[%clk 0:00:35]} 45. h5 {[%clk 0:00:15]}  gxh5 {[%clk 0:00:32]} 46. gxh5 {[%clk 0:00:16]}  Kf5 {[%clk 0:00:27]} 47. Bd6 {[%clk 0:00:15]}  Bc6 {[%clk 0:00:22]} 48. Bc7 {[%clk 0:00:15]}  Kxf4 {[%clk 0:00:18]} 49. h6 {[%clk 0:00:15]}  Be4 {[%clk 0:00:18]} 50. a4 {[%clk 0:00:15]}  Kg5 {[%clk 0:00:16]} 51. Bxb6 {[%clk 0:00:15]}  Kxh6 {[%clk 0:00:16]} 52. Bxa5 {[%clk 0:00:16]}  Kg5 {[%clk 0:00:15]} 53. Kb4 {[%clk 0:00:16]}  f5 {[%clk 0:00:15]} 54. exf6 {[%clk 0:00:15]}  Kxf6 {[%clk 0:00:15]} 55. Bc7 {[%clk 0:00:16]}  Kf5 {[%clk 0:00:14]} 56. Kb5 {[%clk 0:00:16]}  Bd5 {[%clk 0:00:13]} 57. Kb6 {[%clk 0:00:15]}  Ke4 {[%clk 0:00:13]} 58. Be5 {[%clk 0:00:16]}  Ba8 {[%clk 0:00:11]} 59. a5 {[%clk 0:00:14]}  Kd5 {[%clk 0:00:11]} 60. a6 {[%clk 0:00:15]}  Bc6 {[%clk 0:00:10]} 61. Kc7 {[%clk 0:00:14]}  Ba8 {[%clk 0:00:10]} 62. Kb8 {[%clk 0:00:14]}  Bc6 {[%clk 0:00:10]} 63. a7 {[%clk 0:00:15]}  Kc4 {[%clk 0:00:08]} 64. a8=Q {[%clk 0:00:16]}  Bxa8 {[%clk 0:00:08]} 65. Kxa8 {[%clk 0:00:17]}  Kd5 {[%clk 0:00:09]} 66. Kb8 {[%clk 0:00:18]}  Kc6 {[%clk 0:00:09]} 67. Kc8 {[%clk 0:00:18]}  Kd5 {[%clk 0:00:10]} 68. Kd8 {[%clk 0:00:19]}  Kc6 {[%clk 0:00:09]} 69. Ke7 {[%clk 0:00:20]}  Kd5 {[%clk 0:00:09]} 70. Kf7 {[%clk 0:00:20]}  Ke4 {[%clk 0:00:06]} 71. Kxe6 {[%clk 0:00:21]} 1-0

[Event "December 12 Early 2023"]
[Site "https://www.chess.com"]
[Date "2023.12.12"]
[Round "5"]
[White "Turzo, Attila"]
[Black "Jakubowska, Anna"]
[Result "1-0"]
[Board "186"]
[TimeControl "180+1"]
[WhiteFideId "704954"]
[BlackFideId "1121952"]
[WhiteElo "2473"]
[BlackElo "2342"]
[WhiteTeam "HUN"]
[BlackTeam "POL"]
[WhiteClock "0:01:13"]
[BlackClock "0:00:19"]

1. d4 {[%clk 0:02:55]}  f5 {[%clk 0:02:59]} 2. Nf3 {[%clk 0:02:50]}  Nf6 {[%clk 0:02:57]} 3. Bf4 {[%clk 0:02:46]}  g6 {[%clk 0:02:54]} 4. h3 {[%clk 0:02:45]}  d6 {[%clk 0:02:54]} 5. e3 {[%clk 0:02:46]}  Bg7 {[%clk 0:02:52]} 6. c4 {[%clk 0:02:46]}  O-O {[%clk 0:02:47]} 7. Nc3 {[%clk 0:02:47]}  c6 {[%clk 0:02:17]} 8. Be2 {[%clk 0:02:45]}  Nbd7 {[%clk 0:02:17]} 9. O-O {[%clk 0:02:43]}  Qe8 {[%clk 0:02:17]} 10. d5 {[%clk 0:02:41]}  Nb6 {[%clk 0:02:08]} 11. Qd2 {[%clk 0:02:26]}  Bd7 {[%clk 0:02:07]} 12. Nd4 {[%clk 0:02:18]}  cxd5 {[%clk 0:02:03]} 13. cxd5 {[%clk 0:02:17]}  Nfxd5 {[%clk 0:02:00]} 14. Nxd5 {[%clk 0:02:16]}  Nxd5 {[%clk 0:02:00]} 15. Bc4 {[%clk 0:02:16]}  e6 {[%clk 0:02:00]} 16. Bxd6 {[%clk 0:02:08]}  Nb6 {[%clk 0:01:44]} 17. Bxf8 {[%clk 0:01:49]}  Nxc4 {[%clk 0:01:44]} 18. Qe2 {[%clk 0:01:47]}  Qxf8 {[%clk 0:01:25]} 19. Qxc4 {[%clk 0:01:46]}  Rc8 {[%clk 0:01:22]} 20. Qb3 {[%clk 0:01:42]}  Bxd4 {[%clk 0:01:17]} 21. exd4 {[%clk 0:01:42]}  b6 {[%clk 0:01:14]} 22. Rac1 {[%clk 0:01:41]}  Rxc1 {[%clk 0:01:14]} 23. Rxc1 {[%clk 0:01:41]}  Qd6 {[%clk 0:01:15]} 24. Qc4 {[%clk 0:01:36]}  Kf7 {[%clk 0:01:10]} 25. Qc7 {[%clk 0:01:27]}  Qxd4 {[%clk 0:01:09]} 26. Qxa7 {[%clk 0:01:28]}  Kf6 {[%clk 0:01:05]} 27. Qa3 {[%clk 0:01:25]}  Qd5 {[%clk 0:01:00]} 28. Qb3 {[%clk 0:01:20]}  Qd6 {[%clk 0:00:54]} 29. Rd1 {[%clk 0:01:17]}  Qc7 {[%clk 0:00:49]} 30. Qc3+ {[%clk 0:01:16]}  Qxc3 {[%clk 0:00:49]} 31. bxc3 {[%clk 0:01:17]}  Ba4 {[%clk 0:00:43]} 32. Rb1 {[%clk 0:01:14]}  b5 {[%clk 0:00:42]} 33. Rb4 {[%clk 0:01:14]}  Ke5 {[%clk 0:00:34]} 34. c4 {[%clk 0:01:14]}  bxc4 {[%clk 0:00:24]} 35. Rxa4 {[%clk 0:01:14]}  Kd4 {[%clk 0:00:21]} 36. Kf1 {[%clk 0:01:13]}  Kd3 {[%clk 0:00:19]} 37. Ke1 {[%clk 0:01:13]} 1-0

[Event "December 12 Early 2023"]
[Site "https://www.chess.com"]
[Date "2023.12.12"]
[Round "5"]
[White "Aalto, Patrik"]
[Black "Rodriguez Santiago, Jaime"]
[Result "0-1"]
[Board "187"]
[TimeControl "180+1"]
[WhiteFideId "510726"]
[BlackFideId "3100898"]
[WhiteElo "2448"]
[BlackElo "2275"]
[WhiteTeam "FIN"]
[BlackTeam "PUR"]
[WhiteClock "0:00:40"]
[BlackClock "0:00:11"]

1. c3 {[%clk 0:03:00]}  Nf6 {[%clk 0:02:55]} 2. d4 {[%clk 0:03:01]}  d5 {[%clk 0:02:55]} 3. Nf3 {[%clk 0:03:01]}  c5 {[%clk 0:02:55]} 4. e3 {[%clk 0:02:58]}  Nc6 {[%clk 0:02:52]} 5. Bd3 {[%clk 0:02:56]}  Bg4 {[%clk 0:02:51]} 6. h3 {[%clk 0:02:56]}  Bh5 {[%clk 0:02:50]} 7. Nbd2 {[%clk 0:02:56]}  e6 {[%clk 0:02:50]} 8. O-O {[%clk 0:02:55]}  Bd6 {[%clk 0:02:49]} 9. dxc5 {[%clk 0:02:42]}  Bxc5 {[%clk 0:02:47]} 10. e4 {[%clk 0:02:42]}  O-O {[%clk 0:02:31]} 11. Qe2 {[%clk 0:02:32]}  Ne5 {[%clk 0:02:16]} 12. Bc2 {[%clk 0:02:10]}  dxe4 {[%clk 0:02:11]} 13. Nxe4 {[%clk 0:02:10]}  Nxf3+ {[%clk 0:02:03]} 14. gxf3 {[%clk 0:02:10]}  Nxe4 {[%clk 0:01:50]} 15. Qxe4 {[%clk 0:02:07]}  Bg6 {[%clk 0:01:45]} 16. Qe2 {[%clk 0:02:07]}  Qh4 {[%clk 0:01:40]} 17. Kg2 {[%clk 0:02:01]}  Rad8 {[%clk 0:01:30]} 18. f4 {[%clk 0:01:56]}  Bxc2 {[%clk 0:01:01]} 19. Qxc2 {[%clk 0:01:57]}  Rd5 {[%clk 0:01:00]} 20. Qe2 {[%clk 0:01:53]}  Rfd8 {[%clk 0:00:49]} 21. Be3 {[%clk 0:01:54]}  Bxe3 {[%clk 0:00:46]} 22. Qxe3 {[%clk 0:01:52]}  Rd3 {[%clk 0:00:46]} 23. Qe4 {[%clk 0:01:40]}  Qxh3+ {[%clk 0:00:45]} 24. Kg1 {[%clk 0:01:40]}  Rf3 {[%clk 0:00:39]} 25. f5 {[%clk 0:01:34]}  exf5 {[%clk 0:00:35]} 26. Rad1 {[%clk 0:01:29]}  Rf8 {[%clk 0:00:27]} 27. Qb4 {[%clk 0:01:24]}  f4 {[%clk 0:00:24]} 28. Rfe1 {[%clk 0:01:16]}  h6 {[%clk 0:00:16]} 29. Qxf8+ {[%clk 0:01:13]}  Kh7 {[%clk 0:00:15]} 30. Re2 {[%clk 0:00:53]}  Qg4+ {[%clk 0:00:13]} 31. Kf1 {[%clk 0:00:53]}  Rh3 {[%clk 0:00:13]} 32. Ke1 {[%clk 0:00:48]}  Rh1+ {[%clk 0:00:10]} 33. Kd2 {[%clk 0:00:40]}  Qd7+ {[%clk 0:00:11]} 0-1

[Event "December 12 Early 2023"]
[Site "https://www.chess.com"]
[Date "2023.12.12"]
[Round "5"]
[White "Zaichenko, Daria"]
[Black "Salinas Tomas, Daniel"]
[Result "0-1"]
[Board "188"]
[TimeControl "180+1"]
[WhiteFideId "4197453"]
[BlackFideId "24597716"]
[WhiteElo "2230"]
[BlackElo "2393"]
[WhiteTeam "RUS"]
[BlackTeam "ESP"]
[WhiteClock "0:00:06"]
[BlackClock "0:00:21"]

1. e4 {[%clk 0:02:57]}  c5 {[%clk 0:02:56]} 2. Nf3 {[%clk 0:02:52]}  Nc6 {[%clk 0:02:56]} 3. d4 {[%clk 0:02:45]}  cxd4 {[%clk 0:02:57]} 4. Nxd4 {[%clk 0:02:45]}  Nf6 {[%clk 0:02:57]} 5. Nc3 {[%clk 0:02:45]}  e6 {[%clk 0:02:57]} 6. Nxc6 {[%clk 0:02:36]}  bxc6 {[%clk 0:02:58]} 7. e5 {[%clk 0:02:36]}  Nd5 {[%clk 0:02:58]} 8. Nxd5 {[%clk 0:02:36]}  cxd5 {[%clk 0:02:58]} 9. Bd3 {[%clk 0:02:32]}  d6 {[%clk 0:02:46]} 10. f4 {[%clk 0:02:25]}  dxe5 {[%clk 0:02:45]} 11. fxe5 {[%clk 0:02:25]}  Bc5 {[%clk 0:02:44]} 12. Qh5 {[%clk 0:02:20]}  Bd7 {[%clk 0:02:35]} 13. Rf1 {[%clk 0:02:16]}  g6 {[%clk 0:02:21]} 14. Qf3 {[%clk 0:01:53]}  O-O {[%clk 0:02:15]} 15. Bh6 {[%clk 0:01:48]}  Bd4 {[%clk 0:02:08]} 16. Bxf8 {[%clk 0:01:46]}  Qxf8 {[%clk 0:02:08]} 17. c3 {[%clk 0:01:44]}  Bxe5 {[%clk 0:02:08]} 18. h4 {[%clk 0:01:38]}  Rb8 {[%clk 0:02:07]} 19. Rf2 {[%clk 0:01:36]}  Rxb2 {[%clk 0:02:02]} 20. Rxb2 {[%clk 0:01:35]}  Bxc3+ {[%clk 0:02:02]} 21. Kf1 {[%clk 0:01:32]}  Bxb2 {[%clk 0:02:01]} 22. Rb1 {[%clk 0:01:32]}  Bd4 {[%clk 0:02:00]} 23. h5 {[%clk 0:01:30]}  Bb6 {[%clk 0:01:57]} 24. hxg6 {[%clk 0:01:28]}  hxg6 {[%clk 0:01:57]} 25. Qf6 {[%clk 0:01:27]}  Qg7 {[%clk 0:01:55]} 26. Qxg7+ {[%clk 0:01:25]}  Kxg7 {[%clk 0:01:56]} 27. Ke2 {[%clk 0:01:22]}  e5 {[%clk 0:01:55]} 28. Bb5 {[%clk 0:01:17]}  Be6 {[%clk 0:01:55]} 29. Bc6 {[%clk 0:01:16]}  Kf6 {[%clk 0:01:55]} 30. Rb5 {[%clk 0:01:14]}  d4 {[%clk 0:01:53]} 31. Kd3 {[%clk 0:01:11]}  Bg4 {[%clk 0:01:43]} 32. a4 {[%clk 0:00:59]}  Bf5+ {[%clk 0:01:18]} 33. Kc4 {[%clk 0:00:55]}  d3 {[%clk 0:01:07]} 34. Rd5 {[%clk 0:00:54]}  Bd4 {[%clk 0:01:05]} 35. Rd8 {[%clk 0:00:38]}  d2 {[%clk 0:01:01]} 36. Bf3 {[%clk 0:00:38]}  Bc2 {[%clk 0:01:00]} 37. a5 {[%clk 0:00:33]}  d1=Q {[%clk 0:00:57]} 38. Bxd1 {[%clk 0:00:33]}  Bxd1 {[%clk 0:00:58]} 39. Kd5 {[%clk 0:00:29]}  Ke7 {[%clk 0:00:51]} 40. Rb8 {[%clk 0:00:28]}  Bb3+ {[%clk 0:00:51]} 41. Rxb3 {[%clk 0:00:27]}  f5 {[%clk 0:00:45]} 42. a6 {[%clk 0:00:23]}  Kf6 {[%clk 0:00:41]} 43. Rg3 {[%clk 0:00:18]}  f4 {[%clk 0:00:36]} 44. Rf3 {[%clk 0:00:18]}  Kf5 {[%clk 0:00:36]} 45. Rb3 {[%clk 0:00:12]}  g5 {[%clk 0:00:30]} 46. Rb8 {[%clk 0:00:11]}  g4 {[%clk 0:00:22]} 47. Rf8+ {[%clk 0:00:11]}  Kg5 {[%clk 0:00:23]} 48. Ke4 {[%clk 0:00:09]}  Kh4 {[%clk 0:00:23]} 49. Rg8 {[%clk 0:00:04]}  Kg3 {[%clk 0:00:13]} 50. Kf5 {[%clk 0:00:03]}  Kxg2 {[%clk 0:00:11]} 51. Rxg4+ {[%clk 0:00:03]}  Kf3 {[%clk 0:00:12]} 52. Rh4 {[%clk 0:00:04]}  Bf2 {[%clk 0:00:11]} 53. Rh3+ {[%clk 0:00:04]}  Bg3 {[%clk 0:00:12]} 54. Kxe5 {[%clk 0:00:04]}  Kg2 {[%clk 0:00:10]} 55. Rh7 {[%clk 0:00:04]}  f3+ {[%clk 0:00:10]} 56. Ke4 {[%clk 0:00:04]}  f2 {[%clk 0:00:11]} 57. Rf7 {[%clk 0:00:03]}  f1=Q {[%clk 0:00:11]} 58. Rxf1 {[%clk 0:00:03]}  Kxf1 {[%clk 0:00:12]} 59. Kd5 {[%clk 0:00:03]}  Bf2 {[%clk 0:00:12]} 60. Kc6 {[%clk 0:00:03]}  Bb6 {[%clk 0:00:13]} 61. Kb5 {[%clk 0:00:03]}  Ke2 {[%clk 0:00:14]} 62. Ka4 {[%clk 0:00:04]}  Kd3 {[%clk 0:00:15]} 63. Kb5 {[%clk 0:00:03]}  Kd4 {[%clk 0:00:15]} 64. Ka4 {[%clk 0:00:03]}  Kc4 {[%clk 0:00:16]} 65. Ka3 {[%clk 0:00:04]}  Kb5 {[%clk 0:00:17]} 66. Ka2 {[%clk 0:00:04]}  Kxa6 {[%clk 0:00:18]} 67. Kb3 {[%clk 0:00:05]}  Kb5 {[%clk 0:00:18]} 68. Ka3 {[%clk 0:00:05]}  a5 {[%clk 0:00:19]} 69. Ka2 {[%clk 0:00:06]}  a4 {[%clk 0:00:20]} 70. Kb1 {[%clk 0:00:06]}  Kb4 {[%clk 0:00:19]} 71. Ka2 {[%clk 0:00:06]}  Bd4 {[%clk 0:00:20]} 72. Kb1 {[%clk 0:00:07]}  Kb3 {[%clk 0:00:20]} 73. Kc1 {[%clk 0:00:06]}  a3 {[%clk 0:00:21]} 0-1

[Event "December 12 Early 2023"]
[Site "https://www.chess.com"]
[Date "2023.12.12"]
[Round "5"]
[White "Schut, Han"]
[Black "Smirnov, Mark"]
[Result "0-1"]
[Board "192"]
[TimeControl "180+1"]
[WhiteFideId "1005561"]
[BlackFideId "13764594"]
[WhiteElo "2293"]
[BlackElo "2514"]
[WhiteTeam "NED"]
[BlackTeam "KAZ"]
[WhiteClock "0:00:04"]
[BlackClock "0:01:16"]

1. e4 {[%clk 0:02:57]}  c5 {[%clk 0:02:58]} 2. Nf3 {[%clk 0:02:56]}  d6 {[%clk 0:02:58]} 3. d4 {[%clk 0:02:57]}  cxd4 {[%clk 0:02:57]} 4. Nxd4 {[%clk 0:02:58]}  Nf6 {[%clk 0:02:57]} 5. f3 {[%clk 0:02:58]}  e5 {[%clk 0:02:53]} 6. Bb5+ {[%clk 0:02:55]}  Nbd7 {[%clk 0:02:53]} 7. Nf5 {[%clk 0:02:55]}  d5 {[%clk 0:02:52]} 8. exd5 {[%clk 0:02:55]}  a6 {[%clk 0:02:52]} 9. Ba4 {[%clk 0:02:56]}  b5 {[%clk 0:02:51]} 10. Bb3 {[%clk 0:02:56]}  Nc5 {[%clk 0:02:50]} 11. Ne3 {[%clk 0:02:57]}  Nxb3 {[%clk 0:02:49]} 12. axb3 {[%clk 0:02:58]}  Bc5 {[%clk 0:02:46]} 13. Nc3 {[%clk 0:02:57]}  O-O {[%clk 0:02:43]} 14. O-O {[%clk 0:02:55]}  Bb7 {[%clk 0:02:34]} 15. Kh1 {[%clk 0:02:54]}  Bd4 {[%clk 0:02:21]} 16. b4 {[%clk 0:02:38]}  Qb6 {[%clk 0:02:02]} 17. Qd3 {[%clk 0:02:03]}  Rfd8 {[%clk 0:01:45]} 18. Nf5 {[%clk 0:01:42]}  Bxc3 {[%clk 0:01:40]} 19. bxc3 {[%clk 0:01:41]}  Nxd5 {[%clk 0:01:37]} 20. Qe2 {[%clk 0:00:50]}  Qf6 {[%clk 0:01:28]} 21. Qe4 {[%clk 0:00:18]}  Nxc3 {[%clk 0:01:26]} 22. Qxb7 {[%clk 0:00:16]}  Qxf5 {[%clk 0:01:26]} 23. Bb2 {[%clk 0:00:11]}  Qxc2 {[%clk 0:01:23]} 24. Bxc3 {[%clk 0:00:09]}  Qxc3 {[%clk 0:01:24]} 25. Qe4 {[%clk 0:00:07]}  Qd4 {[%clk 0:01:21]} 26. Qf5 {[%clk 0:00:07]}  Qxb4 {[%clk 0:01:20]} 27. Qxe5 {[%clk 0:00:06]}  Qc4 {[%clk 0:01:20]} 28. Rae1 {[%clk 0:00:04]}  b4 {[%clk 0:01:17]} 29. Re4 {[%clk 0:00:04]}  Qxf1# {[%clk 0:01:16]} 0-1

[Event "December 12 Early 2023"]
[Site "https://www.chess.com"]
[Date "2023.12.12"]
[Round "5"]
[White "Omariev, Maksim"]
[Black "Minina, Veronika"]
[Result "0-1"]
[Board "193"]
[TimeControl "180+1"]
[WhiteFideId "4193423"]
[BlackFideId "4174780"]
[WhiteElo "2505"]
[BlackElo "2239"]
[WhiteTeam "RUS"]
[BlackTeam "RUS"]
[WhiteClock "0:00:08"]
[BlackClock "0:00:39"]

1. g4 {[%clk 0:02:45]}  d5 {[%clk 0:02:25]} 2. Bg2 {[%clk 0:02:43]}  c6 {[%clk 0:02:24]} 3. d4 {[%clk 0:02:38]}  Bxg4 {[%clk 0:02:20]} 4. c4 {[%clk 0:02:28]}  dxc4 {[%clk 0:02:14]} 5. Na3 {[%clk 0:02:17]}  e5 {[%clk 0:01:57]} 6. dxe5 {[%clk 0:02:02]}  Qxd1+ {[%clk 0:01:43]} 7. Kxd1 {[%clk 0:02:03]}  Bxa3 {[%clk 0:01:40]} 8. bxa3 {[%clk 0:02:04]}  Nd7 {[%clk 0:01:38]} 9. f4 {[%clk 0:01:42]}  O-O-O {[%clk 0:01:35]} 10. Kc2 {[%clk 0:01:41]}  Nc5 {[%clk 0:01:25]} 11. Be3 {[%clk 0:01:30]}  Bf5+ {[%clk 0:01:25]} 12. Kc3 {[%clk 0:01:27]}  Na4+ {[%clk 0:01:13]} 13. Kxc4 {[%clk 0:01:23]}  a5 {[%clk 0:01:14]} 14. Kb3 {[%clk 0:01:05]}  b5 {[%clk 0:01:13]} 15. Bxc6 {[%clk 0:01:01]}  Ne7 {[%clk 0:01:07]} 16. Bxb5 {[%clk 0:00:58]}  Nd5 {[%clk 0:01:02]} 17. Bf2 {[%clk 0:00:16]}  Nab6 {[%clk 0:00:57]} 18. Nf3 {[%clk 0:00:11]}  Kb7 {[%clk 0:00:57]} 19. Rhc1 {[%clk 0:00:10]}  Nxf4 {[%clk 0:00:56]} 20. Bc6+ {[%clk 0:00:06]}  Ka6 {[%clk 0:00:56]} 21. e4 {[%clk 0:00:05]}  Be6+ {[%clk 0:00:56]} 22. Kb2 {[%clk 0:00:04]}  Nd3+ {[%clk 0:00:54]} 23. Kc3 {[%clk 0:00:02]}  Nxf2 {[%clk 0:00:55]} 24. Rab1 {[%clk 0:00:03]}  Rc8 {[%clk 0:00:55]} 25. Kd2 {[%clk 0:00:02]}  Rhd8+ {[%clk 0:00:52]} 26. Ke3 {[%clk 0:00:02]}  Ng4+ {[%clk 0:00:52]} 27. Kf4 {[%clk 0:00:02]}  Nf2 {[%clk 0:00:50]} 28. Ke3 {[%clk 0:00:02]}  Ng4+ {[%clk 0:00:49]} 29. Kf4 {[%clk 0:00:03]}  h6 {[%clk 0:00:49]} 30. h3 {[%clk 0:00:03]}  g5+ {[%clk 0:00:48]} 31. Kg3 {[%clk 0:00:03]}  Ne3 {[%clk 0:00:49]} 32. Re1 {[%clk 0:00:02]}  Rxc6 {[%clk 0:00:46]} 33. Rxe3 {[%clk 0:00:02]}  Rc2 {[%clk 0:00:45]} 34. Reb3 {[%clk 0:00:01]}  Bxb3 {[%clk 0:00:44]} 35. axb3 {[%clk 0:00:02]}  Rd3 {[%clk 0:00:43]} 36. b4 {[%clk 0:00:03]}  Rcc3 {[%clk 0:00:43]} 37. b5+ {[%clk 0:00:03]}  Kb7 {[%clk 0:00:43]} 38. Rf1 {[%clk 0:00:04]}  h5 {[%clk 0:00:40]} 39. h4 {[%clk 0:00:05]}  g4 {[%clk 0:00:40]} 40. Kf4 {[%clk 0:00:05]}  Rxf3+ {[%clk 0:00:41]} 41. Rxf3 {[%clk 0:00:06]}  Rxf3+ {[%clk 0:00:41]} 42. Kg5 {[%clk 0:00:07]}  g3 {[%clk 0:00:40]} 43. e6 {[%clk 0:00:07]}  g2 {[%clk 0:00:41]} 44. e7 {[%clk 0:00:07]}  g1=Q+ {[%clk 0:00:39]} 45. Kxh5 {[%clk 0:00:08]}  Qg6# {[%clk 0:00:39]} 0-1

[Event "December 12 Early 2023"]
[Site "https://www.chess.com"]
[Date "2023.12.12"]
[Round "5"]
[White "Acosta Cruz, Oscar Yosimar"]
[Black "Mesa Cruz, Juan Carlos"]
[Result "1-0"]
[Board "197"]
[TimeControl "180+1"]
[WhiteFideId "5111269"]
[BlackFideId "6423400"]
[WhiteElo "2165"]
[BlackElo "2330"]
[WhiteTeam "MEX"]
[BlackTeam "DOM"]
[WhiteClock "0:01:39"]
[BlackClock "0:00:06"]

1. e4 {[%clk 0:03:00]}  c5 {[%clk 0:02:59]} 2. Nf3 {[%clk 0:02:59]}  d6 {[%clk 0:02:58]} 3. Bb5+ {[%clk 0:02:58]}  Bd7 {[%clk 0:02:55]} 4. a4 {[%clk 0:02:57]}  Nc6 {[%clk 0:02:54]} 5. O-O {[%clk 0:02:57]}  Nf6 {[%clk 0:02:53]} 6. Re1 {[%clk 0:02:56]}  g6 {[%clk 0:02:49]} 7. c3 {[%clk 0:02:55]}  Bg7 {[%clk 0:02:46]} 8. d4 {[%clk 0:02:54]}  cxd4 {[%clk 0:02:42]} 9. cxd4 {[%clk 0:02:54]}  O-O {[%clk 0:02:40]} 10. Nc3 {[%clk 0:02:53]}  a6 {[%clk 0:02:27]} 11. Bf1 {[%clk 0:02:43]}  Rc8 {[%clk 0:02:08]} 12. h3 {[%clk 0:02:41]}  Na5 {[%clk 0:01:44]} 13. e5 {[%clk 0:02:24]}  Ne8 {[%clk 0:01:33]} 14. Bg5 {[%clk 0:02:20]}  h6 {[%clk 0:01:30]} 15. Bh4 {[%clk 0:02:18]}  g5 {[%clk 0:01:24]} 16. Bg3 {[%clk 0:02:18]}  Nc4 {[%clk 0:01:20]} 17. Ra2 {[%clk 0:02:18]}  dxe5 {[%clk 0:01:01]} 18. dxe5 {[%clk 0:02:14]}  Be6 {[%clk 0:01:00]} 19. Nd4 {[%clk 0:02:09]}  Nxb2 {[%clk 0:00:49]} 20. Rxb2 {[%clk 0:02:07]}  Rxc3 {[%clk 0:00:48]} 21. Nxe6 {[%clk 0:02:06]}  Qxd1 {[%clk 0:00:49]} 22. Rxd1 {[%clk 0:02:05]}  fxe6 {[%clk 0:00:50]} 23. Rxb7 {[%clk 0:02:03]}  Nc7 {[%clk 0:00:39]} 24. Rd7 {[%clk 0:01:59]}  Nd5 {[%clk 0:00:31]} 25. Bxa6 {[%clk 0:01:58]}  Rc1+ {[%clk 0:00:21]} 26. Kh2 {[%clk 0:01:46]}  Rfc8 {[%clk 0:00:17]} 27. Rxe7 {[%clk 0:01:39]}  Nxe7 {[%clk 0:00:16]} 28. Rxe7 {[%clk 0:01:40]}  Rb1 {[%clk 0:00:06]} 29. Bxc8 {[%clk 0:01:39]} 1-0